fUSD/lending_fUSD_20250101
["ID","MTS","AMOUNT","RATE_DAILY","PERIOD"]
[347331346,1735696246847,-500.0,0.00011169,2]
[347331347,1735696246856,-1295.92,0.00011169,2]
[347331348,1735696246865,-1194.52,0.00011169,2]
[347331349,1735696246875,-500.0,0.00011169,2]
[347331350,1735696246886,-500.0,0.00011169,2]
[347331351,1735696246895,-1057.72,0.00011169,2]
[347331352,1735696246904,-500.0,0.00011169,2]
[347331353,1735696246913,-733.36,0.00011169,2]
[347331354,1735696246923,-1446.91,0.00011169,2]
[347331355,1735696246932,-500.0,0.00011169,2]
[347331356,1735696246941,-500.0,0.00011169,2]
[347331357,1735696246950,-500.0,0.00011169,2]
[347331358,1735696246960,-960.45,0.00011169,2]
[347331359,1735696246969,-1926.66,0.00011169,2]
[347331360,1735696246978,-1198.67,0.00011169,2]
[347331361,1735696246987,-2080.65,0.00011169,2]
[347331362,1735696246996,-500.0,0.00011169,2]
[347331363,1735696247005,-549.59,0.00011169,2]
[347331364,1735696247014,-1286.65,0.00011169,2]
[347331365,1735696247023,-1722.89,0.00011169,2]
[347331366,1735696247032,-500.0,0.00011169,2]
[347331367,1735696247041,-668.29,0.00011169,2]
[347331368,1735696247051,-974.47,0.00011169,2]
[347331369,1735696247060,-506.86873951,0.00011169,2]
[347331370,1735696247070,-1563.65,0.00011169,2]
[347331371,1735696247079,-500.0,0.00011169,2]
[347331372,1735696247088,-2805.16,0.00011169,2]
[347331373,1735696247097,-500.0,0.00011169,2]
[347331374,1735696247310,-500.0,0.00011169,2]
[347331375,1735696247363,-500.0,0.00011169,2]
[347331376,1735696247373,-1619.94,0.00011169,2]
[347331377,1735696247383,-1580.57,0.00011169,2]
[347331378,1735696247392,-623.73,0.00011169,2]
[347331379,1735696247401,-879.0,0.00011169,2]
[347331380,1735696247410,-2389.71,0.00011169,2]
[347331381,1735696247420,-500.0,0.00011169,2]
[347331382,1735696247429,-500.0,0.00011169,2]
[347331383,1735696247438,-538.05,0.00011169,2]
[347331384,1735696247447,-1787.9,0.00011169,2]
[347331385,1735696247457,-999.46,0.00011169,2]
[347331386,1735696247466,-1085.41,0.00011169,2]
[347331387,1735696247476,-500.0,0.00011169,2]
[347331388,1735696247485,-500.0,0.00011169,2]
[347331389,1735696247495,-500.0,0.00011169,2]
[347331390,1735696247504,-1146.09,0.00011169,2]
[347331391,1735696247514,-500.0,0.00011169,2]
[347331392,1735696247523,-566.68,0.00011169,2]
[347331393,1735696247532,-500.0,0.00011169,2]
[347331394,1735696247541,-743.29,0.00011169,2]
[347331395,1735696247551,-500.0,0.00011169,2]
[347331396,1735696247560,-500.0,0.00011169,2]
[347331397,1735696247571,-500.0,0.00011169,2]
[347331398,1735696247580,-1072.21,0.00011169,2]
[347331399,1735696247589,-500.0,0.00011169,2]
[347331400,1735696247599,-500.0,0.00011169,2]
[347331401,1735696247609,-1534.5,0.00011169,2]
[347331402,1735696247619,-500.0,0.00011169,2]
[347331403,1735696247629,-500.0,0.00011169,2]
[347331404,1735696247639,-591.6,0.00011169,2]
[347331405,1735696247648,-500.0,0.00011169,2]
[347331406,1735696247657,-500.0,0.00011169,2]
[347331407,1735696247667,-625.22,0.00011169,2]
[347331408,1735696247676,-560.12,0.00011169,2]
[347331409,1735696247686,-564.42,0.00011169,2]
[347331410,1735696247695,-1552.26,0.00011169,2]
[347331411,1735696247704,-754.5,0.00011169,2]
[347331412,1735696247714,-605.47,0.00011169,2]
[347331413,1735696247723,-1317.07,0.00011169,2]
[347331414,1735696247732,-500.0,0.00011169,2]
[347331415,1735696247742,-500.0,0.00011169,2]
[347331416,1735696247751,-2675.99,0.00011169,2]
[347331417,1735696247761,-3266.21,0.00011169,2]
[347331418,1735696247770,-500.0,0.00011169,2]
[347331419,1735696247780,-500.0,0.00011169,2]
[347331420,1735696247789,-1106.42,0.00011169,2]
[347331421,1735696247799,-931.68,0.00011169,2]
[347331422,1735696247808,-1707.21,0.00011169,2]
[347331423,1735696247818,-500.0,0.00011169,2]
[347331424,1735696247828,-1188.05,0.00011169,2]
[347331425,1735696247837,-2516.97,0.00011169,2]
[347331426,1735696247848,-5179.56,0.00011169,2]
[347331427,1735696247857,-1652.89,0.00011169,2]
[347331428,1735696247866,-500.0,0.00011169,2]
[347331429,1735696247876,-500.0,0.00011169,2]
[347331430,1735696247889,-500.0,0.00011169,2]
[347331431,1735696247898,-153.69241604,0.00011169,2]
[347331432,1735696247908,-500.0,0.00011169,2]
[347331433,1735696247917,-376.88617761,0.00011169,2]
[347331434,1735696247927,-1052.2,0.00011169,2]
[347331435,1735696247937,-536.6,0.00011169,2]
[347331436,1735696247947,-1633.4,0.00011169,2]
[347331437,1735696247957,-500.0,0.00011169,2]
[347331438,1735696247967,-500.0,0.00011169,2]
[347331439,1735696247977,-500.0,0.00011169,2]
[347331440,1735696247986,-623.24,0.00011169,2]
[347331441,1735696247996,-5159.98,0.00011169,2]
[347331442,1735696248007,-593.6,0.00011169,2]
[347331443,1735696248016,-1539.36,0.00011169,2]
[347331444,1735696248025,-967.6,0.00011169,2]
[347331445,1735696248035,-500.0,0.00011169,2]
[347331446,1735696248044,-529.41,0.00011169,2]
[347331447,1735696248054,-500.0,0.00011169,2]
[347331448,1735696248063,-500.0,0.00011169,2]
[347331449,1735696248075,-3101.71,0.00011169,2]
[347331450,1735696248084,-1435.02,0.00011169,2]
[347331451,1735696248094,-592.11779918,0.00011169,2]
[347331452,1735696248103,-788.82,0.00011169,2]
[347331453,1735696248113,-500.0,0.00011169,2]
[347331454,1735696248122,-3227.99,0.00011169,2]
[347331455,1735696248132,-500.0,0.00011169,2]
[347331456,1735696248141,-500.0,0.00011169,2]
[347331457,1735696248151,-546.38,0.00011169,2]
[347331458,1735696248160,-500.0,0.00011169,2]
[347331459,1735696248170,-2168.52,0.00011169,2]
[347331460,1735696248180,-892.96,0.00011169,2]
[347331461,1735696248190,-500.0,0.00011169,2]
[347331462,1735696248199,-500.0,0.00011169,2]
[347331463,1735696248208,-3505.02,0.00011169,2]
[347331464,1735696248217,-500.0,0.00011169,2]
[347331465,1735696248227,-878.11,0.00011169,2]
[347331466,1735696248236,-2860.52,0.00011169,2]
[347331467,1735696248245,-1539.21,0.00011169,2]
[347331468,1735696248254,-500.0,0.00011169,2]
[347331469,1735696248263,-1547.69,0.00011169,2]
[347331470,1735696248273,-500.0,0.00011169,2]
[347331471,1735696248282,-3671.49,0.00011169,2]
[347331472,1735696248291,-500.0,0.00011169,2]
[347331473,1735696248301,-2395.34823723,0.00011169,2]
[347331475,1735696292354,400.0,0.00010986,2]
[347331476,1735696375245,250.0,0.00010303,2]
[347331477,1735696379985,193.05,0.0001076,2]
[347331478,1735696505861,739.29,0.00010286,2]
[347331479,1735696516213,175.22,0.00010286,2]
[347331480,1735696630580,1000.0,0.0001026,2]
[347331482,1735696715559,150.01011,0.0002,120]
[347331483,1735696716379,150.01011,0.0002,120]
[347331484,1735696716940,150.01011,0.0002,120]
[347331485,1735696717394,150.01011,0.0002,120]
[347331486,1735696717908,150.01011,0.0002,120]
[347331487,1735696718372,150.01011,0.0002,120]
[347331488,1735696718865,150.01011,0.0002,120]
[347331489,1735696719389,150.01011,0.0002,120]
[347331490,1735696719900,150.01011,0.0002,120]
[347331491,1735696720385,150.01011,0.0002,120]
[347331492,1735696721036,150.01011,0.0002,120]
[347331493,1735696721442,150.01011,0.0002,120]
[347331494,1735696722907,150.01011,0.0002,120]
[347331495,1735696723183,150.01011,0.0002,120]
[347331496,1735696723441,150.01011,0.0002,120]
[347331497,1735696744884,713.02,0.00010243,2]
[347331498,1735696757135,150.01011,0.0002,120]
[347331499,1735696757705,150.01011,0.0002,120]
[347331500,1735696758241,150.01011,0.0002,120]
[347331501,1735696758949,150.01011,0.0002,120]
[347331502,1735696759412,150.01011,0.0002,120]
[347331503,1735696766687,723.45,0.00010243,2]
[347331506,1735696927716,1000.0,0.00011,2]
[347331510,1735696998680,859.2,8.36e-05,2]
[347331511,1735696998914,859.2,0.00010623,2]
[347331513,1735697023758,185.147,0.0001076,2]
[347331515,1735697110551,150.0,0.00010677,2]
[347331516,1735697112780,156.94336653,0.00010677,2]
[347331517,1735697119796,159.40078768,0.00010677,2]
[347331518,1735697145653,23900.0,0.00010237,2]
[347331519,1735697269780,250.0,0.00010229,2]
[347331525,1735697362716,1000.0,0.00011,2]
[347331526,1735697375173,175.22,0.00010247,2]
[347331535,1735697432542,-165.69423,0.0001106,2]
[347331536,1735697432551,-300.0,0.00011063,2]
[347331537,1735697432561,-333.01011,0.00011064,2]
[347331538,1735697432572,-333.01011,0.00011064,2]
[347331539,1735697432581,-333.01011,0.00011064,2]
[347331540,1735697432591,-333.01011,0.00011064,2]
[347331541,1735697432600,-333.01011,0.00011064,2]
[347331542,1735697432610,-333.01011,0.00011064,2]
[347331543,1735697432623,-6341.87,0.00011066,2]
[347331544,1735697432633,-4536.32,0.00011066,2]
[347331545,1735697432643,-4025.07,0.00011066,2]
[347331546,1735697432652,-7718.41,0.00011066,2]
[347331547,1735697432662,-965.83,0.00011066,2]
[347331548,1735697432671,-3133.95,0.00011066,2]
[347331549,1735697432681,-4892.63,0.00011066,2]
[347331550,1735697432691,-7233.5,0.00011066,2]
[347331551,1735697432701,-2876.01,0.00011066,2]
[347331552,1735697432711,-8837.37,0.00011066,2]
[347331553,1735697432721,-11262.02,0.00011066,2]
[347331554,1735697432731,-6586.25,0.00011066,2]
[347331555,1735697432740,-3288.43,0.00011066,2]
[347331556,1735697432750,-5112.15,0.00011066,2]
[347331557,1735697432760,-11454.87,0.00011066,2]
[347331558,1735697432770,-3376.55389986,0.00011066,2]
[347331559,1735697432782,-1937.63733463,0.00011066,2]
[347331560,1735697432794,-443.33674267,0.00011066,2]
[347331561,1735697432852,-541.85635026,0.00011066,2]
[347331562,1735697432864,-319.5,0.00011066,2]
[347331608,1735697439921,-915.34000024,0.00011066,2]
[347331609,1735697439933,-844.32579205,0.00011066,2]
[347331610,1735697439944,-11933.08278253,0.00011066,2]
[347331611,1735697440111,-437.99897411,0.00011066,2]
[347331612,1735697440122,-2049.89997072,0.00011066,2]
[347331677,1735697443663,-477.74999887,0.00011066,2]
[347331678,1735697443804,-1764.09695905,0.00011066,2]
[347331679,1735697443815,-393.29595266,0.00011066,2]
[347331681,1735697445984,-1963.849995,0.00011066,2]
[347331682,1735697445995,-3353.05335427,0.00011066,2]
[347331683,1735697446165,-6312.38189308,0.00011066,2]
[347331684,1735697446174,-401.51335044,0.00011066,2]
[347331685,1735697446183,-2012.96,0.00011066,2]
[347331686,1735697446192,-2055.97773071,0.00011066,2]
[347331687,1735697450614,167.25,0.00010576,2]
[347331688,1735697493606,360.01538934,0.00010968,2]
[347331689,1735697528277,197.468,0.0001076,2]
[347331690,1735697653897,3721.93,0.00010274,2]
[347331691,1735697679611,1000.0,0.00010274,2]
[347331692,1735697775804,1500.0,0.00010273,2]
[347331693,1735697785740,416.66666,0.0001101,2]
[347331694,1735697794420,310.75,0.00010137,2]
[347331695,1735697797927,1000.0,0.00011,2]
[347331697,1735697804225,305.39,0.00010282,2]
[347331698,1735697832245,174.26,0.00010281,2]
[347331699,1735697832491,174.26,0.00010298,2]
[347331700,1735697832761,174.26,0.00010315,2]
[347331701,1735697833113,174.26,0.00010332,2]
[347331702,1735697854799,842.1,8.353e-05,2]
[347331703,1735697855030,842.1,0.00010617,2]
[347331704,1735697862923,629.14,0.00010271,2]
[347331705,1735697911618,3201.705,0.00010844,2]
[347331706,1735697911661,186.198,0.00010844,2]
[347331707,1735697970482,250.0,0.00010286,2]
[347331708,1735698008046,16705.66,0.00010282,2]
[347331709,1735698146040,150.0,0.00010968,2]
[347331710,1735698155320,189.176,0.0001076,2]
[347331711,1735698176639,347.22222,0.0001096,2]
[347331712,1735698181997,510.15,0.00010247,2]
[347331713,1735698202808,1005.0,0.00011,2]
[347331714,1735698288709,262.08,0.00010222,2]
[347331715,1735698311226,157.65215269,0.00010677,2]
[347331716,1735698326210,150.0,0.00010984,2]
[347331717,1735698326263,150.0,0.00010955,2]
[347331718,1735698353904,4611.68179364,6.94e-05,2]
[347331719,1735698358630,242.78,0.0001021,2]
[347331720,1735698362008,6545.09920386,9.8e-05,2]
[347331721,1735698373459,230.89,0.0001021,2]
[347331722,1735698386121,150.0,0.00010897,2]
[347331723,1735698386178,150.0,0.00010864,2]
[347331724,1735698386335,150.0,0.00010967,2]
[347331725,1735698386473,150.0,0.00010899,2]
[347331726,1735698489771,250.0,0.00010187,2]
[347331730,1735698560384,150.010111,0.0002,120]
[347331731,1735698561066,150.010111,0.0002,120]
[347331732,1735698567668,289.35185,0.0001096,2]
[347331733,1735698578907,150.010111,0.0002,120]
[347331734,1735698579447,150.010111,0.0002,120]
[347331735,1735698579990,150.010111,0.0002,120]
[347331736,1735698580498,150.010111,0.0002,120]
[347331737,1735698581011,150.010111,0.0002,120]
[347331738,1735698581509,150.010111,0.0002,120]
[347331739,1735698584079,50000.0,0.0001,2]
[347331740,1735698607208,300.0,0.0001096,2]
[347331741,1735698629532,300.0,0.0001096,2]
[347331742,1735698631527,1000.0,0.00011,2]
[347331757,1735698632138,-150.0,0.0001105,2]
[347331758,1735698632147,-150.0,0.00011054,2]
[347331759,1735698632156,-333.01011,0.00011058,2]
[347331760,1735698632166,-52.04413735,0.00011058,2]
[347331761,1735698632177,-280.96597265,0.00011058,2]
[347331762,1735698632186,-333.01011,0.00011058,2]
[347331763,1735698632195,-333.01011,0.00011058,2]
[347331764,1735698632204,-33420.8149904,0.0001106,2]
[347331765,1735698632213,-15475.3394651,0.0001106,2]
[347331766,1735698632222,-6982.1396695,0.0001106,2]
[347331767,1735698632230,-1446.18,0.00011064,2]
[347331768,1735698632240,-5517.87,0.00011064,2]
[347331769,1735698632249,-1036.87,0.00011064,2]
[347331770,1735698632258,-3357.47068015,0.00011064,2]
[347331771,1735698632270,-357.02375455,0.00011064,2]
[347331772,1735698632282,-630.1214688,0.00011064,2]
[347331773,1735698632293,-441.46626179,0.00011064,2]
[347331774,1735698632327,-3683.06783471,0.00011064,2]
[347331775,1735698632337,-4016.79,0.00011064,2]
[347331776,1735698632346,-6076.53,0.00011064,2]
[347331777,1735698632355,-4164.66812875,0.00011064,2]
[347331778,1735698632367,-6812.91187125,0.00011064,2]
[347331779,1735698632376,-4198.77,0.00011064,2]
[347331780,1735698632385,-6455.79,0.00011064,2]
[347331781,1735698632394,-6077.62,0.00011064,2]
[347331782,1735698632402,-1201.97109086,0.00011064,2]
[347331783,1735698632413,-1954.08890914,0.00011064,2]
[347331784,1735698632422,-5091.76501447,0.00011064,2]
[347331785,1735698632433,-1514.06555586,0.00011064,2]
[347331854,1735698637861,10000.0,0.00011,2]
[347331855,1735698637986,-3144.64467995,0.00011064,2]
[347331856,1735698637996,-3973.78386599,0.00011064,2]
[347331857,1735698638123,-5822.94549455,0.00011064,2]
[347331858,1735698638260,-1943.46898318,0.00011064,2]
[347331860,1735698638781,300.0,0.00011,2]
[347331863,1735698640134,-1000.0,0.00011064,2]
[347331864,1735698640146,-335.98774331,0.00011064,2]
[347331865,1735698640157,-500.0,0.00011064,2]
[347331866,1735698640168,-571.33144562,0.00011064,2]
[347331867,1735698640179,-1057.45773831,0.00011064,2]
[347331868,1735698640402,-503.87233114,0.00011064,2]
[347331870,1735698640487,-3924.35265902,0.00011064,2]
[347331873,1735698643216,-501.40680005,0.00011064,2]
[347331874,1735698643231,-500.0,0.00011064,2]
[347331875,1735698643245,-262.47,0.00011064,2]
[347331876,1735698643361,-11635.27063463,0.00011064,2]
[347331877,1735698643372,-1685.39167205,0.00011064,2]
[347331879,1735698644367,9500.0,0.00011,2]
[347331887,1735698645979,-355.52102378,0.00011064,2]
[347331903,1735698646127,-3089.9999995,0.00011064,2]
[347331916,1735698646250,-807.05547,0.00011064,2]
[347331918,1735698646262,-1891.98239915,0.00011064,2]
[347331922,1735698646446,-3173.4500005,0.00011064,2]
[347331923,1735698649720,1000.0,0.00010217,2]
[347331924,1735698654542,300.0,0.00011,4]
[347331925,1735698662985,354.69,0.00010137,2]
[347331927,1735698682265,3858.19,0.0001,2]
[347331928,1735698687715,173.57,0.00011,2]
[347331929,1735698717129,31044.95028001,0.00010964,2]
[347331931,1735698776058,792.77,8.271e-05,2]
[347331932,1735698776259,792.77,0.00010535,2]
[347331933,1735698784581,181.289,0.0001061,2]
[347331934,1735698803366,308.5846194,0.00010965,2]
[347331936,1735698866677,150.0,0.00010798,2]
[347331937,1735698866743,150.0,0.00010833,2]
[347331938,1735698866792,150.0,0.00010931,2]
[347331940,1735698966398,241.12654,0.0001095,2]
[347331942,1735698986534,150.0,0.00010912,2]
[347331943,1735698986594,150.0,0.00010911,2]
[347331944,1735698986648,170.53112506,0.00010937,2]
[347331945,1735699000721,570.41,0.00010196,2]
[347331946,1735699049744,150.0,0.00010904,2]
[347331947,1735699049795,150.0,0.00010939,2]
[347331948,1735699049857,150.0,0.0001092,2]
[347331949,1735699057532,150.0,0.00010849,2]
[347331951,1735699299925,262.08,0.00010223,2]
[347331952,1735699357404,200.93878,0.0001095,2]
[347331953,1735699413610,173.238,0.0001061,2]
[347331954,1735699431419,250.0,0.00010225,2]
[347331955,1735699434569,500.0,0.00010941,2]
[347331956,1735699466229,150.0,0.00010847,2]
[347331957,1735699466283,150.0,0.00010863,2]
[347331958,1735699466333,150.0,0.00010962,2]
[347331959,1735699613975,1492.2389422,0.00011,2]
[347331960,1735699674223,1000.0,0.00010243,2]
[347331961,1735699707443,150.0,0.00010996,2]
[347331962,1735699742005,713.49,8.308e-05,2]
[347331963,1735699742195,713.49,0.00010572,2]
[347331964,1735699752867,167.44899,0.0001095,2]
[347331965,1735699803411,188.3,0.00010137,2]
[347331981,1735699832483,-150.0,0.00011042,2]
[347331982,1735699832494,-300.0,0.00011057,2]
[347331983,1735699832508,-748.466868,0.00011058,2]
[347331984,1735699832521,-305.33042154,0.00011058,2]
[347331985,1735699832533,-522.80002,0.00011058,2]
[347331986,1735699832547,-1397.89804856,0.00011058,2]
[347331987,1735699832559,-781.3299975,0.00011058,2]
[347331988,1735699832570,-714.10476417,0.00011058,2]
[347331989,1735699832583,-922.243665,0.00011058,2]
[347331990,1735699832595,-495.07637835,0.00011058,2]
[347331991,1735699832609,-460.74,0.00011058,2]
[347331992,1735699832710,-4267.96992408,0.00011058,2]
[347331993,1735699832720,-2636.96197481,0.00011058,2]
[347331994,1735699832732,-629.12607671,0.00011058,2]
[347331995,1735699832744,-8718.16277065,0.00011058,2]
[347331996,1735699832757,-16404.72305943,0.00011058,2]
[347331997,1735699832767,-6066.7145915,0.00011058,2]
[347331998,1735699832777,-1940.71,0.0001106,2]
[347331999,1735699832787,-2052.71,0.0001106,2]
[347332000,1735699832798,-500.0,0.0001106,2]
[347332001,1735699832809,-5824.39,0.00011061,2]
[347332002,1735699832819,-4544.54,0.00011061,2]
[347332003,1735699832830,-4032.36,0.00011061,2]
[347332004,1735699832840,-573.57,0.00011061,2]
[347332005,1735699832850,-7396.81,0.00011061,2]
[347332006,1735699832860,-936.16,0.00011061,2]
[347332007,1735699832870,-500.0,0.00011061,2]
[347332008,1735699832880,-879.72,0.00011061,2]
[347332009,1735699832890,-559.2,0.00011061,2]
[347332010,1735699832900,-1489.14,0.00011061,2]
[347332011,1735699832911,-1345.48,0.00011061,2]
[347332012,1735699832921,-601.21,0.00011061,2]
[347332013,1735699832931,-967.58,0.00011061,2]
[347332015,1735699832941,-2181.34,0.00011061,2]
[347332016,1735699832951,-2213.34,0.00011061,2]
[347332018,1735699832962,-500.0,0.00011061,2]
[347332021,1735699832973,-500.0,0.00011061,2]
[347332023,1735699832983,-500.0,0.00011061,2]
[347332025,1735699832993,-500.0,0.00011061,2]
[347332027,1735699833003,-786.1,0.00011061,2]
[347332029,1735699833013,-500.0,0.00011061,2]
[347332031,1735699833024,-619.33,0.00011061,2]
[347332033,1735699833047,-1294.81,0.00011061,2]
[347332034,1735699833059,-621.76,0.00011061,2]
[347332035,1735699833069,-500.0,0.00011061,2]
[347332036,1735699833080,-1821.27,0.00011061,2]
[347332037,1735699833090,-500.0,0.00011061,2]
[347332038,1735699833101,-500.0,0.00011061,2]
[347332039,1735699833111,-3139.63,0.00011061,2]
[347332040,1735699833122,-1789.73,0.00011061,2]
[347332041,1735699833132,-876.7,0.00011061,2]
[347332042,1735699833142,-1385.92,0.00011061,2]
[347332043,1735699833152,-768.62,0.00011061,2]
[347332044,1735699833162,-500.0,0.00011061,2]
[347332045,1735699833172,-975.67,0.00011061,2]
[347332046,1735699833183,-5287.96,0.00011061,2]
[347332047,1735699833193,-1709.85,0.00011061,2]
[347332048,1735699833204,-786.65,0.00011061,2]
[347332049,1735699833215,-679.76,0.00011061,2]
[347332050,1735699833225,-500.0,0.00011061,2]
[347332051,1735699833236,-500.0,0.00011061,2]
[347332052,1735699833247,-1855.92,0.00011061,2]
[347332053,1735699833257,-1245.06,0.00011061,2]
[347332054,1735699833267,-2756.17,0.00011061,2]
[347332055,1735699833278,-2050.55,0.00011061,2]
[347332056,1735699833288,-4688.77,0.00011061,2]
[347332057,1735699833299,-1683.57,0.00011061,2]
[347332058,1735699833311,-500.0,0.00011061,2]
[347332059,1735699833322,-932.99,0.00011061,2]
[347332060,1735699833332,-8116.27,0.00011061,2]
[347332061,1735699833342,-500.0,0.00011061,2]
[347332062,1735699833355,-500.0,0.00011061,2]
[347332063,1735699833365,-500.0,0.00011061,2]
[347332064,1735699833375,-2164.34,0.00011061,2]
[347332065,1735699833385,-500.0,0.00011061,2]
[347332066,1735699833395,-500.0,0.00011061,2]
[347332067,1735699833405,-500.0,0.00011061,2]
[347332068,1735699833416,-7246.6,0.00011061,2]
[347332069,1735699833426,-500.0,0.00011061,2]
[347332070,1735699833436,-3849.43,0.00011061,2]
[347332071,1735699833446,-500.0,0.00011061,2]
[347332072,1735699833457,-500.0,0.00011061,2]
[347332073,1735699833468,-500.0,0.00011061,2]
[347332074,1735699833479,-500.0,0.00011061,2]
[347332075,1735699833490,-11346.54,0.00011061,2]
[347332076,1735699833500,-500.0,0.00011061,2]
[347332077,1735699833511,-1125.56,0.00011061,2]
[347332078,1735699833527,-500.0,0.00011061,2]
[347332079,1735699833538,-5823.34,0.00011061,2]
[347332080,1735699833549,-500.0,0.00011061,2]
[347332081,1735699833560,-1124.29,0.00011061,2]
[347332082,1735699833571,-1283.87,0.00011061,2]
[347332083,1735699833582,-500.0,0.00011061,2]
[347332084,1735699833593,-500.0,0.00011061,2]
[347332085,1735699833603,-10520.19,0.00011061,2]
[347332086,1735699833614,-1623.05,0.00011061,2]
[347332087,1735699833625,-500.0,0.00011061,2]
[347332088,1735699833636,-11282.43,0.00011061,2]
[347332089,1735699833646,-257.33644815,0.00011061,2]
[347332090,1735699833657,-810.66,0.00011061,2]
[347332091,1735699833668,-35519.63,0.00011061,2]
[347332092,1735699833679,-597.78,0.00011061,2]
[347332093,1735699833689,-500.0,0.00011061,2]
[347332094,1735699833701,-864.88,0.00011061,2]
[347332095,1735699833712,-726.09,0.00011061,2]
[347332096,1735699833723,-500.0,0.00011061,2]
[347332097,1735699833735,-4023.82,0.00011061,2]
[347332098,1735699833746,-715.11,0.00011061,2]
[347332099,1735699833757,-2730.49,0.00011061,2]
[347332100,1735699833768,-500.0,0.00011061,2]
[347332101,1735699833779,-861.04,0.00011061,2]
[347332102,1735699833790,-6598.18,0.00011061,2]
[347332103,1735699833800,-1396.66,0.00011061,2]
[347332104,1735699833811,-500.0,0.00011061,2]
[347332105,1735699833822,-4382.3,0.00011061,2]
[347332106,1735699833833,-870.87,0.00011061,2]
[347332107,1735699833844,-500.0,0.00011061,2]
[347332108,1735699833855,-1929.08,0.00011061,2]
[347332109,1735699833866,-720.22,0.00011061,2]
[347332110,1735699833877,-708.03,0.00011061,2]
[347332111,1735699833888,-500.0,0.00011061,2]
[347332112,1735699833899,-500.0,0.00011061,2]
[347332113,1735699833910,-13235.09,0.00011061,2]
[347332114,1735699833921,-3024.55,0.00011061,2]
[347332115,1735699833932,-500.0,0.00011061,2]
[347332116,1735699833942,-500.0,0.00011061,2]
[347332117,1735699833953,-4899.15,0.00011061,2]
[347332118,1735699833964,-746.66,0.00011061,2]
[347332119,1735699833974,-6818.54,0.00011061,2]
[347332120,1735699833985,-500.0,0.00011061,2]
[347332121,1735699833996,-2342.6,0.00011061,2]
[347332122,1735699834007,-1992.372362,0.00011061,2]
[347332123,1735699834018,-17025.86,0.00011061,2]
[347332124,1735699834496,-500.0,0.00011061,2]
[347332125,1735699834507,-500.0,0.00011061,2]
[347332126,1735699834517,-154.758914,0.00011061,2]
[347332127,1735699834527,-8774.99,0.00011061,2]
[347332128,1735699834537,-500.0,0.00011061,2]
[347332129,1735699834547,-934.16,0.00011061,2]
[347332130,1735699834559,-152.944311,0.00011061,2]
[347332131,1735699834569,-21634.21,0.00011061,2]
[347332132,1735699834579,-1463.82,0.00011061,2]
[347332133,1735699834589,-500.0,0.00011061,2]
[347332134,1735699834598,-500.0,0.00011061,2]
[347332135,1735699834608,-500.0,0.00011061,2]
[347332136,1735699834618,-819.16,0.00011061,2]
[347332137,1735699834628,-13805.69,0.00011061,2]
[347332138,1735699834637,-500.0,0.00011061,2]
[347332139,1735699834648,-5537.54,0.00011061,2]